[Event "26th Troya Open 2018"]
[Site "Canakkale"]
[Date "2018.08.05"]
[Round "2.13"]
[White "Saglamer, Aysen"]
[Black "Acar, Ilhami"]
[Result "1/2-1/2"]
[ECO "B67"]
[WhiteElo "1526"]
[BlackElo "1658"]
[Annotator "NA RC"]
[PlyCount "124"]
[EventDate "2018.08.06"]
[EventType "swiss"]
[EventCountry "TUR"]
[SourceTitle "playchess.com"]
[Source "ChessBase"]
[SourceQuality "1"]
[TimeControl "5400+30"]

1. e4 c5 2. Nf3 d6 3. d4 cxd4 4. Nxd4 Nf6 5. Nc3 Nc6 6. Bg5 e6 7. Qd2 a6 8. O-O-O Bd7 9. f4 b5 10. Bxf6 gxf6 {[%emt 0:02:00]} 11. Kb1 {[%emt 0:11:30]} b4 {[%emt 0:02:30]} 12. Nce2 {[%emt 0:07:30]} Qb6 {[%emt 0:01:30]} 13. f5 {[%emt 0:04:30]} e5 {[%emt 0:02:30]} 14. Nxc6 {[%emt 0:04:30]} Bxc6 {[%emt 0:00:30]} 15. Ng3 {[%emt 0:00:30]} h5 {[%emt 0:00:30]} 16. h4 {[%emt 0:00:30]} a5 {[%emt 0:12:30]} 17. Bc4 {[%emt 0:09:30]} Rd8 {[%emt 0:13:30]} 18. Qe2 {[%emt 0:03:30]} Qc5 {[%emt 0:03:30]} 19. Bd5 {[%emt 0:10:30]} Bb5 {[%emt 0:00:30]} 20. Qf3 {[%emt 0:06:30]} Ke7 {[%emt 0:05:30]} 21. Nxh5 {[%emt 0:19:30]} Rc8 {[%emt 0:05:30]} 22. Bb3 {[%emt 0:03:34]} a4 {[%emt 0:00:30]} 23. Nxf6 {[%emt 0:01:19]} Kxf6 {[%emt 0:01:30]} 24. Qg3 {[%emt 0:00:17]} Bh6 {[%emt 0:11:30]} 25. Bxf7 {[%emt 0:08:35]} Ke7 {[%emt 0:16:30]} 26. Qg6 {[%emt 0:03:37]} Bd7 {[%emt 0:09:59]} 27. Be6 {[%emt 0:02:13]} Be8 {[%emt 0:01:57]} 28. f6+ {[%emt 0:03:31]} Kxe6 {[%emt 0:01:34]} 29. f7+ {[%emt 0:00:30]} Ke7 {[%emt 0:01:27]} 30. Rhf1 {[%emt 0:00:54]} Bf4 {[%emt 0:05:17]} 31. fxe8=Q+ {[%emt 0:01:38]} Rhxe8 {[%emt 0:00:20]} 32. Qg7+ {[%emt 0:00:16]} Kd8 {[%emt 0:00:30]} 33. Qf6+ {[%emt 0:00:30]} Kc7 {[%emt 0:00:30]} 34. Rd5 {[%emt 0:00:31]} Qc6 {[%emt 0:01:59]} 35. Rfd1 {[%emt 0:00:58]} Red8 {[%emt 0:00:35]} 36. Qe7+ {[%emt 0:00:00]} Rd7 {[%emt 0:00:30]} 37. Qe6 {[%emt 0:00:56]} Rdd8 {[%emt 0:01:35]} 38. Qe7+ {[%emt 0:00:25]} Kb8 {[%emt 0:00:09]} 39. Ka1 {[%emt 0:00:37]} a3 {[%emt 0:00:30]} 40. Rxd6 {[%emt 0:00:35]} axb2+ {[%emt 0:01:27]} 41. Kxb2 {[%emt 0:00:30]} Rxd6 {[%emt 0:00:30]} 42. Qxd6+ {[%emt 0:00:30]} Qxd6 {[%emt 0:00:30]} 43. Rxd6 {[%emt 0:00:30]} Rc4 {[%emt 0:00:42]} 44. g4 {[%emt 0:00:22]} Rxe4 {[%emt 0:00:03]} 45. g5 {[%emt 0:00:33]} Re2 {[%emt 0:01:22]} 46. g6 {[%emt 0:01:00]} Rg2 {[%emt 0:00:30]} 47. h5 {[%emt 0:00:00]} Rg5 {[%emt 0:00:18]} 48. h6 {[%emt 0:00:00]} e4 {[%emt 0:00:40]} 49. Re6 {[%emt 0:00:30]} Be5+ {[%emt 0:01:01]} 50. Kc1 {[%emt 0:00:25]} Rg1+ {[%emt 0:00:10]} 51. Kd2 {[%emt 0:00:30]} Bf4+ {[%emt 0:00:00]} 52. Ke2 {[%emt 0:00:00]} Bxh6 {[%emt 0:00:18]} 53. Rxe4 {[%emt 0:00:39]} Rxg6 {[%emt 0:00:56]} 54. Rxb4+ {[%emt 0:00:03]} Kc7 {[%emt 0:00:15]} 55. a4 {[%emt 0:01:45]} Rd6 {[%emt 0:00:47]} 56. Rc4+ {[%emt 0:00:43]} Kb6 {[%emt 0:00:06]} 57. Rh4 {[%emt 0:00:31]} Bg5 {[%emt 0:01:09]} 58. Rb4+ {[%emt 0:00:15]} Ka6 {[%emt 0:00:08]} 59. Rb5 {[%emt 0:00:46]} Bf6 {[%emt 0:00:33]} 60. c4 {[%emt 0:00:30]} Bd8 {[%emt 0:00:34]} 61. Rd5 {[%emt 0:00:47]} Rxd5 {[%emt 0:00:30]} 62. cxd5 {[%emt 0:00:00]} Be7 {[%emt 0:00:06]} 1/2-1/2

[Event "26th Troya Open 2018"]
[Site "Canakkale"]
[Date "2018.08.05"]
[Round "2.14"]
[White "Istekli, Erdem"]
[Black "Erdogmus, Yagiz Kaan"]
[Result "1-0"]
[ECO "B22"]
[WhiteElo "1713"]
[BlackElo "1422"]
[Annotator "NA RC"]
[PlyCount "139"]
[EventDate "2018.08.06"]
[EventType "swiss"]
[EventCountry "TUR"]
[SourceTitle "playchess.com"]
[Source "ChessBase"]
[SourceQuality "1"]
[TimeControl "5400+30"]

1. e4 c5 2. Nf3 e6 3. c3 d5 4. exd5 {[%emt 0:04:00]} Qxd5 {[%emt 0:02:00]} 5. d4 {[%emt 0:00:30]} cxd4 {[%emt 0:02:30]} 6. cxd4 {[%emt 0:00:30]} Nf6 {[%emt 0:00:30]} 7. Bd3 {[%emt 0:05:30]} Be7 {[%emt 0:01:30]} 8. Nc3 {[%emt 0:00:30]} Qd6 {[%emt 0:00:30]} 9. O-O {[%emt 0:00:30]} O-O {[%emt 0:00:30]} 10. Be3 {[%emt 0:07:30]} Nc6 {[%emt 0:03:30]} 11. a3 {[%emt 0:00:00]} a6 {[%emt 0:01:30]} 12. Qc2 {[%emt 0:03:00]} Bd7 {[%emt 0:05:30]} 13. Rad1 {[%emt 0:02:30]} Rac8 {[%emt 0:02:30]} 14. Rfe1 {[%emt 0:01:30]} h6 {[%emt 0:02:30]} 15. Qd2 {[%emt 0:10:30]} Qc7 {[%emt 0:07:30]} 16. Bxh6 {[%emt 0:13:30]} Ne8 {[%emt 0:01:30]} 17. d5 {[%emt 0:13:30]} Nd8 {[%emt 0:05:30]} 18. Bf4 {[%emt 0:02:30]} Qb6 {[%emt 0:02:30]} 19. Ne5 {[%emt 0:03:30]} Nf6 {[%emt 0:01:30]} 20. d6 {[%emt 0:06:30]} Bxd6 {[%emt 0:00:30]} 21. Nxd7 {[%emt 0:00:30]} Nxd7 {[%emt 0:01:30]} 22. Bxd6 {[%emt 0:00:30]} Re8 {[%emt 0:00:30]} 23. Bg3 {[%emt 0:04:30]} Nc5 {[%emt 0:01:30]} 24. Bb1 {[%emt 0:03:18]} Nc6 {[%emt 0:01:30]} 25. Qc2 {[%emt 0:01:13]} g6 {[%emt 0:00:30]} 26. Bd6 {[%emt 0:06:28]} Nb3 {[%emt 0:01:30]} 27. Be5 {[%emt 0:07:18]} Nxe5 {[%emt 0:00:30]} 28. Rxe5 {[%emt 0:00:30]} Nd4 {[%emt 0:00:30]} 29. Qd2 {[%emt 0:02:53]} Rcd8 {[%emt 0:00:30]} 30. Qh6 {[%emt 0:00:42]} Qxb2 {[%emt 0:00:30]} 31. Bxg6 {[%emt 0:01:14]} Rd7 {[%emt 0:00:30]} 32. Bxf7+ {[%emt 0:00:14]} Kxf7 {[%emt 0:00:30]} 33. Qh7+ {[%emt 0:00:56]} Kf6 {[%emt 0:00:00]} 34. Qxd7 {[%emt 0:00:00]} Qxc3 {[%emt 0:00:00]} 35. Qxe8 {[%emt 0:00:41]} Kxe5 {[%emt 0:00:30]} 36. Qh8+ {[%emt 0:00:34]} Kd5 {[%emt 0:00:00]} 37. Qd8+ {[%emt 0:00:31]} Ke5 {[%emt 0:00:00]} 38. Qh8+ {[%emt 0:00:31]} Kd5 {[%emt 0:00:00]} 39. Qxd4+ {[%emt 0:00:42]} Qxd4 {[%emt 0:00:00]} 40. Rxd4+ {[%emt 0:00:30]} Kxd4 {[%emt 0:00:30]} 41. h4 {[%emt 0:00:00]} Ke5 {[%emt 0:00:30]} 42. h5 {[%emt 0:00:05]} b5 {[%emt 0:00:30]} 43. Kf1 {[%emt 0:00:00]} a5 {[%emt 0:00:00]} 44. Ke2 {[%emt 0:00:00]} Kf5 {[%emt 0:00:00]} 45. Kd3 {[%emt 0:00:00]} Kg5 {[%emt 0:00:30]} 46. g4 {[%emt 0:00:16]} e5 {[%emt 0:00:00]} 47. Ke4 {[%emt 0:00:31]} a4 {[%emt 0:00:00]} 48. Kd3 {[%emt 0:00:12]} e4+ {[%emt 0:00:30]} 49. Kc3 {[%emt 0:00:30]} Kxg4 {[%emt 0:00:30]} 50. h6 {[%emt 0:00:30]} Kf3 {[%emt 0:00:30]} 51. h7 {[%emt 0:00:30]} Kxf2 {[%emt 0:00:30]} 52. h8=Q {[%emt 0:00:00]} e3 {[%emt 0:00:00]} 53. Qd4 {[%emt 0:00:00]} b4+ {[%emt 0:00:00]} 54. Kxb4 {[%emt 0:00:00]} Kf3 {[%emt 0:00:00]} 55. Kxa4 {[%emt 0:00:00]} e2 {[%emt 0:00:00]} 56. Qg1 {[%emt 0:00:20]} Ke4 {[%emt 0:00:30]} 57. Kb5 {[%emt 0:00:30]} Kd3 {[%emt 0:00:30]} 58. Qe1 {[%emt 0:00:00]} Ke3 {[%emt 0:00:00]} 59. a4 {[%emt 0:00:00]} Kf3 {[%emt 0:00:00]} 60. a5 {[%emt 0:00:00]} Ke3 {[%emt 0:00:30]} 61. a6 {[%emt 0:00:18]} Kd3 {[%emt 0:00:30]} 62. a7 {[%emt 0:00:30]} Ke3 {[%emt 0:00:30]} 63. a8=Q {[%emt 0:00:00]} Kd3 {[%emt 0:00:00]} 64. Qf3+ {[%emt 0:00:00]} Kd4 {[%emt 0:00:00]} 65. Qff2+ {[%emt 0:00:00]} Kd5 {[%emt 0:00:00]} 66. Qfxe2 {[%emt 0:00:00]} Kd6 {[%emt 0:00:00]} 67. Qe6+ {[%emt 0:00:00]} Kc7 {[%emt 0:00:00]} 68. Qc3+ {[%emt 0:00:00]} Kb8 {[%emt 0:00:00]} 69. Qcc8+ {[%emt 0:00:00]} Ka7 {[%emt 0:00:00]} 70. Qea6# {[%emt 0:00:00]} 1-0

[Event "26th Troya Open 2018"]
[Site "Canakkale"]
[Date "2018.08.05"]
[Round "2.15"]
[White "Elci, Defne"]
[Black "Sahap, Abdurrahman"]
[Result "1/2-1/2"]
[ECO "B30"]
[WhiteElo "1378"]
[BlackElo "1688"]
[Annotator "NA RC"]
[PlyCount "111"]
[EventDate "2018.08.06"]
[EventType "swiss"]
[EventCountry "TUR"]
[SourceTitle "playchess.com"]
[Source "ChessBase"]
[SourceQuality "1"]
[TimeControl "5400+30"]

1. e4 c5 2. Nf3 Nc6 3. Bb5 Nf6 {[%emt 0:03:30]} 4. Nc3 {[%emt 0:05:00]} a6 {[%emt 0:00:30]} 5. Bxc6 {[%emt 0:00:30]} dxc6 {[%emt 0:00:30]} 6. h3 {[%emt 0:00:30]} g6 {[%emt 0:01:30]} 7. d3 {[%emt 0:01:30]} Bg7 {[%emt 0:00:00]} 8. O-O {[%emt 0:03:30]} O-O {[%emt 0:00:00]} 9. Bf4 {[%emt 0:05:30]} b5 {[%emt 0:05:30]} 10. Re1 {[%emt 0:08:30]} b4 {[%emt 0:04:30]} 11. Ne2 {[%emt 0:03:30]} Nh5 {[%emt 0:10:30]} 12. Be5 {[%emt 0:03:30]} Nf6 {[%emt 0:07:30]} 13. Bh2 {[%emt 0:00:30]} a5 {[%emt 0:03:30]} 14. Qd2 {[%emt 0:05:30]} Ba6 {[%emt 0:02:30]} 15. a3 {[%emt 0:10:30]} c4 {[%emt 0:07:30]} 16. axb4 {[%emt 0:05:30]} cxd3 {[%emt 0:01:30]} 17. cxd3 {[%emt 0:00:30]} Qxd3 {[%emt 0:01:30]} 18. Qxd3 {[%emt 0:00:30]} Bxd3 {[%emt 0:00:00]} 19. e5 {[%emt 0:01:30]} Nd5 {[%emt 0:01:00]} 20. bxa5 {[%emt 0:03:30]} Nb4 {[%emt 0:06:30]} 21. Nf4 {[%emt 0:07:30]} Bb5 {[%emt 0:08:30]} 22. Nd4 {[%emt 0:06:30]} Rfd8 {[%emt 0:01:30]} 23. Nxb5 {[%emt 0:02:30]} cxb5 {[%emt 0:00:30]} 24. Re4 {[%emt 0:06:55]} Rxa5 {[%emt 0:01:30]} 25. Rb1 {[%emt 0:05:57]} Nc6 {[%emt 0:02:30]} 26. b4 {[%emt 0:00:42]} Ra4 {[%emt 0:01:30]} 27. e6 {[%emt 0:05:00]} Rxb4 {[%emt 0:01:30]} 28. Rexb4 {[%emt 0:01:19]} Nxb4 {[%emt 0:00:30]} 29. exf7+ {[%emt 0:00:18]} Kxf7 {[%emt 0:00:30]} 30. Bg3 {[%emt 0:00:42]} Rd4 {[%emt 0:03:30]} 31. f3 {[%emt 0:04:32]} Rc4 {[%emt 0:00:30]} 32. Ne2 {[%emt 0:01:26]} Bf6 {[%emt 0:02:30]} 33. Kf1 {[%emt 0:01:50]} Bg5 {[%emt 0:03:30]} 34. Be1 {[%emt 0:01:02]} Nd3 {[%emt 0:03:18]} 35. Rxb5 {[%emt 0:00:30]} Bf6 {[%emt 0:00:30]} 36. Rb3 {[%emt 0:00:30]} Nc1 {[%emt 0:00:40]} 37. Nxc1 {[%emt 0:00:35]} Rxc1 {[%emt 0:00:22]} 38. Ke2 {[%emt 0:00:44]} Rc2+ {[%emt 0:00:25]} 39. Kf1 {[%emt 0:00:03]} Be5 {[%emt 0:00:51]} 40. Re3 {[%emt 0:00:49]} Bd6 {[%emt 0:00:39]} 41. Re4 {[%emt 0:00:31]} Rc1 {[%emt 0:01:26]} 42. Ke2 {[%emt 0:00:23]} Rb1 {[%emt 0:00:43]} 43. Kd3 {[%emt 0:00:42]} Ra1 {[%emt 0:00:30]} 44. Bb4 {[%emt 0:00:30]} Bxb4 {[%emt 0:00:30]} 45. Rxb4 {[%emt 0:00:30]} Rg1 {[%emt 0:00:30]} 46. Rb2 {[%emt 0:00:00]} Kf6 {[%emt 0:01:30]} 47. Ke3 {[%emt 0:00:33]} Re1+ {[%emt 0:01:00]} 48. Kf2 {[%emt 0:00:30]} Ra1 {[%emt 0:00:30]} 49. Rb6+ {[%emt 0:00:30]} e6 {[%emt 0:00:30]} 50. g4 {[%emt 0:00:02]} g5 {[%emt 0:00:55]} 51. Rb7 {[%emt 0:00:43]} Ra2+ {[%emt 0:00:30]} 52. Kg3 {[%emt 0:00:30]} h6 {[%emt 0:00:30]} 53. Rh7 {[%emt 0:00:30]} Kg6 {[%emt 0:00:25]} 54. Rb7 {[%emt 0:00:00]} Ra6 {[%emt 0:00:40]} 55. Rb5 {[%emt 0:00:28]} Kf6 {[%emt 0:00:30]} 56. h4 {[%emt 0:01:12]} 1/2-1/2

[Event "26th Troya Open 2018"]
[Site "Canakkale"]
[Date "2018.08.05"]
[Round "2.16"]
[White "Albay, Koraycan"]
[Black "Ersahince, Umut Utku"]
[Result "1-0"]
[ECO "E47"]
[WhiteElo "1693"]
[BlackElo "1414"]
[Annotator "NA RC"]
[PlyCount "79"]
[EventDate "2018.08.06"]
[EventType "swiss"]
[EventCountry "TUR"]
[SourceTitle "playchess.com"]
[Source "ChessBase"]
[SourceQuality "1"]
[TimeControl "5400+30"]

1. d4 Nf6 2. c4 e6 3. Nc3 Bb4 4. e3 O-O 5. Bd3 b6 6. Nge2 Bb7 7. O-O d5 8. a3 {[%emt 0:03:00]} Be7 {[%emt 0:04:00]} 9. cxd5 {[%emt 0:02:30]} exd5 {[%emt 0:01:30]} 10. b4 {[%emt 0:02:30]} Nbd7 {[%emt 0:08:30]} 11. Bb2 {[%emt 0:04:30]} Re8 {[%emt 0:05:30]} 12. Rc1 {[%emt 0:04:30]} a6 {[%emt 0:03:30]} 13. Qb3 {[%emt 0:03:30]} Nf8 {[%emt 0:11:30]} 14. a4 {[%emt 0:01:30]} Ne6 {[%emt 0:06:30]} 15. b5 {[%emt 0:01:30]} a5 {[%emt 0:03:30]} 16. Ba3 {[%emt 0:02:30]} Ng5 {[%emt 0:12:30]} 17. Bxe7 {[%emt 0:03:30]} Rxe7 {[%emt 0:05:30]} 18. Ng3 {[%emt 0:00:00]} g6 {[%emt 0:02:30]} 19. Rc2 {[%emt 0:03:00]} Kg7 {[%emt 0:03:30]} 20. Rfc1 {[%emt 0:04:30]} h5 {[%emt 0:03:30]} 21. h4 {[%emt 0:03:30]} Ngh7 {[%emt 0:02:30]} 22. Nce2 {[%emt 0:02:30]} Rd7 {[%emt 0:02:30]} 23. Nf4 {[%emt 0:00:30]} Nf8 {[%emt 0:10:12]} 24. Nf1 {[%emt 0:07:30]} Qe7 {[%emt 0:01:56]} 25. Nd2 {[%emt 0:01:30]} Rc8 {[%emt 0:08:29]} 26. Nf3 {[%emt 0:01:30]} Rd6 {[%emt 0:00:52]} 27. Ne5 {[%emt 0:00:30]} Qd8 {[%emt 0:00:50]} 28. g3 {[%emt 0:01:30]} Qe7 {[%emt 0:00:56]} 29. Bf1 {[%emt 0:02:30]} Ng4 {[%emt 0:00:54]} 30. Nc6 {[%emt 0:01:30]} Qd7 {[%emt 0:02:37]} 31. Na7 {[%emt 0:00:30]} c6 {[%emt 0:01:29]} 32. Nxc8 {[%emt 0:00:30]} Qxc8 {[%emt 0:00:00]} 33. bxc6 {[%emt 0:00:30]} Rxc6 {[%emt 0:00:11]} 34. Rxc6 {[%emt 0:00:30]} Bxc6 {[%emt 0:00:06]} 35. Bb5 {[%emt 0:00:30]} Qf5 {[%emt 0:00:05]} 36. Bxc6 {[%emt 0:01:30]} Ne6 {[%emt 0:00:24]} 37. Qxd5 {[%emt 0:00:30]} Nxf4 {[%emt 0:00:22]} 38. Qxf5 {[%emt 0:01:30]} Ne2+ {[%emt 0:00:30]} 39. Kf1 {[%emt 0:00:30]} gxf5 {[%emt 0:00:07]} 40. Kxe2 {[%emt 0:00:00]} 1-0

[Event "26th Troya Open 2018"]
[Site "Canakkale"]
[Date "2018.08.05"]
[Round "2.17"]
[White "Sar, Can"]
[Black "Mirza, Efe"]
[Result "1-0"]
[ECO "B78"]
[WhiteElo "1786"]
[BlackElo "1331"]
[Annotator "NA"]
[PlyCount "53"]
[EventDate "2018.08.06"]
[EventType "swiss"]
[EventCountry "TUR"]
[SourceTitle "playchess.com"]
[Source "ChessBase"]
[SourceQuality "1"]
[TimeControl "5400+30"]

1. e4 c5 2. Nf3 d6 3. d4 cxd4 4. Nxd4 Nf6 5. Nc3 g6 6. Be3 Bg7 7. Bc4 O-O 8. Bb3 {[%emt 0:01:00]} Nc6 {[%emt 0:07:00]} 9. f3 {[%emt 0:00:30]} Bd7 {[%emt 0:01:30]} 10. Qd2 {[%emt 0:00:30]} a6 {[%emt 0:02:30]} 11. O-O-O {[%emt 0:00:30]} b5 {[%emt 0:04:30]} 12. h4 {[%emt 0:01:30]} h5 {[%emt 0:00:30]} 13. g4 {[%emt 0:02:30]} hxg4 {[%emt 0:03:30]} 14. h5 {[%emt 0:00:30]} Nxd4 {[%emt 0:10:30]} 15. Bxd4 {[%emt 0:00:00]} Nxh5 {[%emt 0:02:30]} 16. Bxg7 {[%emt 0:01:00]} Kxg7 {[%emt 0:00:30]} 17. Rxh5 {[%emt 0:00:30]} Rh8 {[%emt 0:03:30]} 18. Rxh8 {[%emt 0:00:30]} Qxh8 {[%emt 0:00:30]} 19. Qd4+ {[%emt 0:00:00]} f6 {[%emt 0:00:30]} 20. Nd5 {[%emt 0:01:00]} Qd8 {[%emt 0:00:30]} 21. fxg4 {[%emt 0:06:30]} Bxg4 {[%emt 0:00:30]} 22. Rg1 {[%emt 0:00:30]} Bd7 {[%emt 0:00:30]} 23. Nf4 {[%emt 0:01:30]} Qe8 {[%emt 0:04:30]} 24. Rxg6+ {[%emt 0:00:30]} Qxg6 {[%emt 0:00:30]} 25. Nxg6 {[%emt 0:00:30]} Kxg6 {[%emt 0:00:30]} 26. Qg1+ {[%emt 0:00:30]} Kh7 {[%emt 0:00:00]} 27. Bf7 {[%emt 0:00:00]} 1-0

[Event "26th Troya Open 2018"]
[Site "Canakkale"]
[Date "2018.08.05"]
[Round "2.18"]
[White "Boz, Omer Ege"]
[Black "Ileri, Oktay"]
[Result "0-1"]
[ECO "B22"]
[WhiteElo "1390"]
[BlackElo "1697"]
[Annotator "NA RC"]
[PlyCount "76"]
[EventDate "2018.08.06"]
[EventType "swiss"]
[EventCountry "TUR"]
[SourceTitle "playchess.com"]
[Source "ChessBase"]
[SourceQuality "1"]
[TimeControl "5400+30"]

1. e4 c5 2. c3 d5 3. exd5 Qxd5 4. d4 Nc6 {[%emt 0:03:00]} 5. Na3 {[%emt 0:16:30]} cxd4 {[%emt 0:29:30]} 6. Nb5 {[%emt 0:03:30]} Qd8 {[%emt 0:00:30]} 7. Nxd4 {[%emt 0:12:30]} Nxd4 {[%emt 0:03:30]} 8. Qxd4 {[%emt 0:01:30]} Qxd4 {[%emt 0:00:30]} 9. cxd4 {[%emt 0:00:00]} Nf6 {[%emt 0:00:00]} 10. Nf3 {[%emt 0:00:00]} e6 {[%emt 0:01:00]} 11. Bd3 {[%emt 0:02:30]} Bd6 {[%emt 0:00:30]} 12. Bd2 {[%emt 0:01:30]} O-O {[%emt 0:02:30]} 13. O-O {[%emt 0:00:30]} b6 {[%emt 0:02:30]} 14. Ng5 {[%emt 0:03:30]} Bb7 {[%emt 0:00:30]} 15. Rfe1 {[%emt 0:02:30]} Rac8 {[%emt 0:11:30]} 16. Ne4 {[%emt 0:11:30]} Nxe4 {[%emt 0:02:30]} 17. Bxe4 {[%emt 0:00:30]} Bxe4 {[%emt 0:00:30]} 18. Rxe4 {[%emt 0:00:30]} Rc2 {[%emt 0:00:30]} 19. Bc3 {[%emt 0:00:00]} Ba3 {[%emt 0:00:30]} 20. Rb1 {[%emt 0:03:00]} Rc8 {[%emt 0:00:30]} 21. Re3 {[%emt 0:05:30]} Bxb2 {[%emt 0:01:30]} 22. Rxb2 {[%emt 0:03:30]} R8xc3 {[%emt 0:01:30]} 23. Rxc3 {[%emt 0:05:30]} Rxc3 {[%emt 0:00:30]} 24. g3 {[%emt 0:00:30]} Kf8 {[%emt 0:00:00]} 25. Rd2 {[%emt 0:00:30]} Ke7 {[%emt 0:06:00]} 26. Kf1 {[%emt 0:01:30]} Kd6 {[%emt 0:00:30]} 27. Ke2 {[%emt 0:00:30]} Kd5 {[%emt 0:00:00]} 28. f3 {[%emt 0:01:30]} b5 {[%emt 0:00:00]} 29. h3 {[%emt 0:02:30]} b4 {[%emt 0:00:30]} 30. h4 {[%emt 0:01:30]} f5 {[%emt 0:00:30]} 31. Kf2 {[%emt 0:00:30]} a5 {[%emt 0:00:30]} 32. Ke2 {[%emt 0:00:30]} a4 {[%emt 0:00:00]} 33. Rb2 {[%emt 0:00:30]} b3 {[%emt 0:00:00]} 34. axb3 {[%emt 0:01:30]} axb3 {[%emt 0:00:30]} 35. Rd2 {[%emt 0:01:30]} Rc2 {[%emt 0:00:30]} 36. Rxc2 {[%emt 0:00:30]} bxc2 {[%emt 0:00:30]} 37. Kd2 {[%emt 0:00:30]} Kxd4 {[%emt 0:00:00]} 38. Kxc2 {[%emt 0:00:30]} Ke5 {[%emt 0:00:00]} 0-1

[Event "26th Troya Open 2018"]
[Site "Canakkale"]
[Date "2018.08.05"]
[Round "2.19"]
[White "Uysal, Ugur"]
[Black "Savas, Cihan"]
[Result "1-0"]
[ECO "E65"]
[WhiteElo "1689"]
[BlackElo "1557"]
[Annotator "NA RC"]
[PlyCount "81"]
[EventDate "2018.08.06"]
[EventType "swiss"]
[EventCountry "TUR"]
[SourceTitle "playchess.com"]
[Source "ChessBase"]
[SourceQuality "1"]
[TimeControl "5400+30"]

1. Nf3 {[%emt 0:00:30]} Nf6 {[%emt 0:19:30]} 2. d4 {[%emt 0:00:00]} g6 {[%emt 0:01:30]} 3. c4 {[%emt 0:00:00]} Bg7 {[%emt 0:03:30]} 4. g3 {[%emt 0:00:30]} O-O {[%emt 0:00:30]} 5. Bg2 {[%emt 0:00:00]} d6 {[%emt 0:01:30]} 6. O-O {[%emt 0:01:00]} Nbd7 {[%emt 0:00:30]} 7. Nc3 {[%emt 0:00:30]} c5 {[%emt 0:00:30]} 8. e4 {[%emt 0:00:30]} cxd4 {[%emt 0:00:30]} 9. Nxd4 {[%emt 0:01:30]} a6 {[%emt 0:04:30]} 10. Re1 {[%emt 0:00:30]} Re8 {[%emt 0:01:30]} 11. h3 {[%emt 0:01:30]} Qc7 {[%emt 0:06:30]} 12. b3 {[%emt 0:00:30]} Rb8 {[%emt 0:01:30]} 13. Bb2 {[%emt 0:04:30]} Ne5 {[%emt 0:03:30]} 14. Rc1 {[%emt 0:01:30]} Nc6 {[%emt 0:00:30]} 15. Nd5 {[%emt 0:01:30]} Qd8 {[%emt 0:09:30]} 16. Nxc6 {[%emt 0:03:30]} bxc6 {[%emt 0:00:30]} 17. Nxf6+ {[%emt 0:00:00]} exf6 {[%emt 0:01:30]} 18. Qd2 {[%emt 0:03:00]} Qc7 {[%emt 0:07:30]} 19. Rcd1 {[%emt 0:14:30]} Rd8 {[%emt 0:04:30]} 20. Bc3 {[%emt 0:00:30]} Qe7 {[%emt 0:02:30]} 21. Ba5 {[%emt 0:02:30]} Rd7 {[%emt 0:00:30]} 22. h4 {[%emt 0:05:30]} Bf8 {[%emt 0:04:30]} 23. Bc3 {[%emt 0:01:30]} c5 {[%emt 0:05:31]} 24. Qf4 {[%emt 0:02:30]} Bg7 {[%emt 0:02:24]} 25. Bh3 {[%emt 0:00:30]} Rd8 {[%emt 0:08:01]} 26. Bxc8 {[%emt 0:00:30]} Rbxc8 {[%emt 0:00:13]} 27. Rd5 {[%emt 0:00:30]} h6 {[%emt 0:01:42]} 28. Red1 {[%emt 0:01:30]} Rc6 {[%emt 0:00:32]} 29. R1d3 {[%emt 0:03:30]} g5 {[%emt 0:01:20]} 30. Qf5 {[%emt 0:02:30]} Qe6 {[%emt 0:00:54]} 31. Rf3 {[%emt 0:01:30]} Re8 {[%emt 0:05:19]} 32. Bxf6 {[%emt 0:02:30]} gxh4 {[%emt 0:01:23]} 33. Bxh4 {[%emt 0:02:30]} Qxe4 {[%emt 0:01:25]} 34. Qxf7+ {[%emt 0:01:30]} Kh8 {[%emt 0:00:13]} 35. Bf6 {[%emt 0:00:30]} Qb1+ {[%emt 0:00:56]} 36. Kg2 {[%emt 0:00:30]} Rg8 {[%emt 0:00:28]} 37. Bxg7+ {[%emt 0:00:30]} Rxg7 {[%emt 0:00:30]} 38. Qe8+ {[%emt 0:00:00]} Kh7 {[%emt 0:00:31]} 39. Qxc6 {[%emt 0:00:00]} Qe4 {[%emt 0:00:27]} 40. Rxd6 {[%emt 0:00:00]} Qe5 {[%emt 0:00:21]} 41. Rxh6+ {[%emt 0:00:00]} 1-0

[Event "26th Troya Open 2018"]
[Site "Canakkale"]
[Date "2018.08.05"]
[Round "2.21"]
[White "Gurses, Ayberk"]
[Black "Akkas, Doruk"]
[Result "1-0"]
[ECO "B31"]
[WhiteElo "1660"]
[BlackElo "1340"]
[Annotator "NA RC"]
[PlyCount "103"]
[EventDate "2018.08.06"]
[EventType "swiss"]
[EventCountry "TUR"]
[SourceTitle "playchess.com"]
[Source "ChessBase"]
[SourceQuality "1"]
[TimeControl "5400+30"]

1. e4 c5 2. Nf3 Nc6 3. Bb5 g6 4. O-O Bg7 5. c3 Nf6 6. Re1 {[%emt 0:01:00]} a6 {[%emt 0:07:00]} 7. Ba4 {[%emt 0:00:30]} O-O {[%emt 0:02:30]} 8. d3 {[%emt 0:02:30]} b5 {[%emt 0:05:30]} 9. Bc2 {[%emt 0:01:30]} d6 {[%emt 0:03:30]} 10. Nbd2 {[%emt 0:01:30]} Be6 {[%emt 0:09:30]} 11. Nf1 {[%emt 0:11:30]} Qc7 {[%emt 0:07:30]} 12. h3 {[%emt 0:04:30]} Rad8 {[%emt 0:01:30]} 13. Bf4 {[%emt 0:01:30]} Qb6 {[%emt 0:05:30]} 14. Ng3 {[%emt 0:02:30]} h6 {[%emt 0:08:30]} 15. Qd2 {[%emt 0:04:30]} Kh7 {[%emt 0:01:30]} 16. d4 {[%emt 0:01:30]} cxd4 {[%emt 0:02:30]} 17. cxd4 {[%emt 0:00:30]} Bc8 {[%emt 0:02:30]} 18. Rac1 {[%emt 0:06:30]} Nd7 {[%emt 0:07:30]} 19. Be3 {[%emt 0:02:30]} Qa5 {[%emt 0:04:30]} 20. Qd3 {[%emt 0:03:30]} Nb4 {[%emt 0:01:30]} 21. Qc3 {[%emt 0:02:30]} Nb8 {[%emt 0:04:30]} 22. Bd2 {[%emt 0:02:30]} N8c6 {[%emt 0:01:30]} 23. a3 {[%emt 0:01:30]} Nxc2 {[%emt 0:02:30]} 24. Qxc6 {[%emt 0:03:30]} Nxd4 {[%emt 0:02:58]} 25. Bxa5 {[%emt 0:01:30]} Nxc6 {[%emt 0:00:09]} 26. Bxd8 {[%emt 0:00:30]} Bxb2 {[%emt 0:02:08]} 27. Rxc6 {[%emt 0:00:30]} Rxd8 {[%emt 0:00:06]} 28. Re3 {[%emt 0:01:30]} Bf6 {[%emt 0:01:20]} 29. Ne2 {[%emt 0:00:30]} a5 {[%emt 0:03:47]} 30. Nfd4 {[%emt 0:03:30]} Bd7 {[%emt 0:01:59]} 31. Rc7 {[%emt 0:00:30]} Be8 {[%emt 0:01:55]} 32. Nc6 {[%emt 0:00:30]} Bxc6 {[%emt 0:00:51]} 33. Rxc6 {[%emt 0:00:30]} Rb8 {[%emt 0:01:09]} 34. Rb3 {[%emt 0:00:30]} Kg7 {[%emt 0:05:13]} 35. Nc3 {[%emt 0:01:30]} Bxc3 {[%emt 0:01:06]} 36. Rcxc3 {[%emt 0:00:00]} Kf8 {[%emt 0:01:41]} 37. f3 {[%emt 0:00:00]} Ke8 {[%emt 0:00:24]} 38. Rc7 {[%emt 0:00:30]} Kd8 {[%emt 0:00:12]} 39. Ra7 {[%emt 0:00:30]} a4 {[%emt 0:00:29]} 40. Rxa4 {[%emt 0:00:00]} Rc8 {[%emt 0:00:36]} 41. Ra7 {[%emt 0:00:00]} Rb8 {[%emt 0:01:01]} 42. a4 {[%emt 0:00:30]} b4 {[%emt 0:00:00]} 43. a5 {[%emt 0:00:30]} f6 {[%emt 0:01:28]} 44. a6 {[%emt 0:00:00]} h5 {[%emt 0:00:28]} 45. Rb7 {[%emt 0:00:00]} Ra8 {[%emt 0:00:00]} 46. a7 {[%emt 0:00:30]} Rxa7 {[%emt 0:00:29]} 47. Rxa7 {[%emt 0:00:00]} e6 {[%emt 0:00:24]} 48. Rxb4 {[%emt 0:00:00]} Kc8 {[%emt 0:00:38]} 49. Rbb7 {[%emt 0:00:00]} e5 {[%emt 0:01:27]} 50. Rh7 {[%emt 0:00:00]} Kb8 {[%emt 0:00:30]} 51. Rag7 {[%emt 0:00:30]} Kc8 {[%emt 0:00:30]} 52. Rh8# {[%emt 0:00:00]} 1-0